Workbook

Sheet Blad1
A1: Rookgassstroom | B1: 195000 | C1: kg/uur | F1: Gasdruk | G1: 996 | H1: millibara
A3: Componenten | B3: M massa | C3: Molfractie | D3: Restant | E3: Molfractie | F3: Mol Massa | G3: M Massa | H3: Massa perc | I3: Massa Perc | J3: Gasstroom | K3: Gasstroom
A4: Gas | C4: Nat (Volume) | D4: Droog | E4: Droog | F4: Droog | G4: Nat | H4: W% nat | I4: w% Droog | J4: Nat | K4: Droog
C5: x 100 = vol% | F5: kg | G5: kg | J5: kg/uur | K5: kg/uur
A6: CO2 | B6: 44 | C6: 0.0772 | D6: =C6 -> 0.0772 | E6: =D6/$D$16 -> 0.09548463666 | F6: =E6*B6 -> 4.201324013 | G6: =C6*B6 -> 3.3968 | H6: =C6*B6/$G$16 -> 0.1241349824 | I6: =E6*B6/$F$16 -> 0.14203661 | J6: =H6*$B$1 -> 24206.32157 | K6: =J6 -> 24206.32157
A7: CO | B7: 28 | C7: 0.0003 | D7: =C7 -> 0.0003 | E7: 0.0003710542876 | F7: =E7*B7 -> 0.01038952005 | G7: =C7*B7 -> 0.0084 | H7: =C7*B7/$G$16 -> 0.0003069753451 | I7: =E7*B7/$F$16 -> 0.0003512445608 | J7: =H7*$B$1 -> 59.86019229 | K7: =J7 -> 59.86019229
A8: H2 | B8: 2 | C8: 0.008 | D8: =C8 -> 0.008 | E8: 0.009894781001 | F8: 0.019789562 | G8: 0.016 | H8: 0.000584714943 | I8: 0.0006690372586 | J8: 114.0194139 | K8: =J8 -> 114.0194139
A9: N2 | B9: 28 | C9: 0.6615 | D9: =C9 -> 0.6615 | E9: 0.8181747041 | F9: 22.90889171 | G9: 18.522 | H9: 0.6768806359 | I9: 0.7744942565 | J9: 131991.724 | K9: 131991.724
A10: O2 | B10: 32 | C10: 0.0614 | D10: =C10 -> 0.0614 | E10: 0.07594244419 | F10: 2.430158214 | G10: 1.9648 | H10: 0.071802995 | I10: 0.08215777535 | J10: 14001.58402 | K10: 14001.58402
A11: H2O | B11: 18 | C11: 0.1916 | D11: 0 | E11: 0 | F11: 0 | G11: 3.4488 | H11: 0.126035306 | I11: 0 | J11: 24576.88466 | K11: 0
A12: SO2 | B12: 64 | C12: 0.0001 | D12: =C12 -> 0.0001 | E12: 0.0001236847625 | F12: 0.007915824801 | G12: 0.0064 | H12: 0.0002338859772 | I12: 0.0002676149034 | J12: 45.60776555 | K12: =J12 -> 45.60776555
A13: SO3 | B13: 80 | C13: 7e-06 | D13: =C13 -> 7e-06 | E13: 8.657933376e-06 | F13: 0.0006926346701 | G13: 0.00056 | H13: 2.0465023e-05 | I13: 2.341630405e-05 | J13: 3.990679486 | K13: =J13 -> 3.990679486
A14: HCl | B14: 36 | C14: 3e-08 | D14: =C14 -> 3e-08 | E14: 3.710542876e-08 | F14: 1.335795435e-06 | G14: 1.08e-06 | H14: 3.946825865e-08 | I14: 4.516001495e-08 | J14: 0.007696310437 | K14: =J14 -> 0.007696310437
C16: =SUM(C6:C15) -> 1.00010703 | D16: 0.80850703 | E16: 1 | F16: 29.57916282 | G16: 27.36376108 | H16: 1 | I16: 1 | J16: 195000 | K16: 170423.1153
A17: Dichtheid rookgas in kg/Nm3 | F17: =F16/22.4 -> 1.32049834 | G17: =G16/22.4 -> 1.221596477
A18: Absolute vochtigheid rookgas | F18: x = | G18: =J11/K16 -> 0.1442109811 | H18: kg/kg droog gas | I18: Abs vochtigheid
F20: Quench | G20: 65 | H20: oC Gewenst
F21: RV | G21: 95 | H21: %
F22: pw max | G22: =psat_t(G20)*1000 -> 250.410979 | H22: milli bara
F23: pw | G23: =G22*G21/100 -> 237.8904301 | H23: milli bara
F24: x max | G24: =B11/F16*G23/(G1-G23) -> 0.1909552573 | H24: kg/kg droog rookgas
F25: Verdamping | G25: =(G24-G18)*K16 -> 7966.305177 | H25: kg water/ uur
